[Event "Titled Tuesday Blitz April 4 Late 2023"]
[White "Grycel, Kamil"]
[Black "K2JW"]
[WhiteFideId "1115499"]
[WhiteElo "2509"]
[BlackElo "2325"]
[Result "0-1"]
[Round "04"]
[TimeControl "180+2"]
[Date "2023.04.04"]
[WhiteClock "0:00:08"]
[BlackClock "0:00:40"]

1. d4 {[%clk 0:03:00]}  d5 {[%clk 0:02:58]} 2. Bf4 {[%clk 0:02:59]}  c5 {[%clk 0:02:58]} 3. c3 {[%clk 0:02:59]}  Nc6 {[%clk 0:02:57]} 4. e3 {[%clk 0:02:59]}  cxd4 {[%clk 0:02:57]} 5. exd4 {[%clk 0:02:58]}  Bf5 {[%clk 0:02:57]} 6. Nd2 {[%clk 0:02:49]}  e6 {[%clk 0:02:57]} 7. Ngf3 {[%clk 0:02:38]}  Bd6 {[%clk 0:02:56]} 8. Bg3 {[%clk 0:02:37]}  Nge7 {[%clk 0:02:50]} 9. Be2 {[%clk 0:02:36]}  Ng6 {[%clk 0:02:50]} 10. Qb3 {[%clk 0:02:27]}  Qd7 {[%clk 0:02:20]} 11. Bxd6 {[%clk 0:01:36]}  Qxd6 {[%clk 0:02:20]} 12. Qxb7 {[%clk 0:01:35]}  Rb8 {[%clk 0:02:21]} 13. Qa6 {[%clk 0:01:35]}  Rb6 {[%clk 0:01:54]} 14. Qa4 {[%clk 0:01:33]}  Nf4 {[%clk 0:01:53]} 15. Ne5 {[%clk 0:00:41]}  O-O {[%clk 0:01:27]} 16. Nxc6 {[%clk 0:00:35]}  Rxc6 {[%clk 0:01:16]} 17. Bf1 {[%clk 0:00:25]}  Rb8 {[%clk 0:00:54]} 18. g3 {[%clk 0:00:18]}  Nd3+ {[%clk 0:00:53]} 19. Bxd3 {[%clk 0:00:18]}  Bxd3 {[%clk 0:00:54]} 20. Nb3 {[%clk 0:00:13]}  Ra6 {[%clk 0:00:49]} 21. Qxa6 {[%clk 0:00:10]}  Bxa6 {[%clk 0:00:45]} 22. O-O-O {[%clk 0:00:10]}  Bc4 {[%clk 0:00:45]} 23. Nc5 {[%clk 0:00:09]}  Bxa2 {[%clk 0:00:45]} 24. Kd2 {[%clk 0:00:09]}  Rxb2+ {[%clk 0:00:44]} 25. Ke3 {[%clk 0:00:10]}  e5 {[%clk 0:00:42]} 26. f4 {[%clk 0:00:08]}  exd4+ {[%clk 0:00:42]} 27. cxd4 {[%clk 0:00:08]}  Qe7+ {[%clk 0:00:41]} 28. Kd3 {[%clk 0:00:08]}  Qe2+ {[%clk 0:00:40]} 0-1


[Site "https://www.chess.com"]

[Event "Titled Tuesday Blitz April 4 Late 2023"]
[White "Kirillov, Dmitry"]
[Black "Koc, Przemyslaw"]
[WhiteFideId "34180572"]
[BlackFideId "1109081"]
[WhiteElo "2111"]
[BlackElo "2161"]
[Result "1-0"]
[Round "04"]
[TimeControl "180+2"]
[Date "2023.04.04"]
[WhiteClock "0:00:22"]
[BlackClock "0:01:10"]

1. d4 {[%clk 0:03:00]}  d6 {[%clk 0:02:59]} 2. e4 {[%clk 0:02:58]}  e5 {[%clk 0:02:59]} 3. dxe5 {[%clk 0:02:57]}  dxe5 {[%clk 0:02:59]} 4. Qxd8+ {[%clk 0:02:57]}  Kxd8 {[%clk 0:03:00]} 5. Bc4 {[%clk 0:02:57]}  f6 {[%clk 0:02:56]} 6. Be3 {[%clk 0:02:53]}  Nd7 {[%clk 0:02:54]} 7. Nd2 {[%clk 0:02:52]}  Bc5 {[%clk 0:02:52]} 8. Bxc5 {[%clk 0:02:49]}  Nxc5 {[%clk 0:02:52]} 9. O-O-O {[%clk 0:02:50]}  Bd7 {[%clk 0:02:51]} 10. b4 {[%clk 0:02:46]}  Na4 {[%clk 0:02:51]} 11. Ne2 {[%clk 0:02:16]}  Ke7 {[%clk 0:02:51]} 12. Nb3 {[%clk 0:02:13]}  Nh6 {[%clk 0:02:45]} 13. Rxd7+ {[%clk 0:02:09]}  Kxd7 {[%clk 0:02:44]} 14. Bb5+ {[%clk 0:02:09]}  c6 {[%clk 0:02:44]} 15. Bxa4 {[%clk 0:02:10]}  b5 {[%clk 0:02:45]} 16. Nc5+ {[%clk 0:02:11]}  Ke7 {[%clk 0:02:43]} 17. Bb3 {[%clk 0:02:11]}  a5 {[%clk 0:02:41]} 18. c3 {[%clk 0:02:10]}  Ng4 {[%clk 0:02:36]} 19. h3 {[%clk 0:02:04]}  Nh6 {[%clk 0:02:22]} 20. Rd1 {[%clk 0:01:58]}  Ra7 {[%clk 0:02:22]} 21. f4 {[%clk 0:01:54]}  a4 {[%clk 0:02:17]} 22. Be6 {[%clk 0:01:47]}  Rd8 {[%clk 0:02:07]} 23. f5 {[%clk 0:01:34]}  Rxd1+ {[%clk 0:02:05]} 24. Kxd1 {[%clk 0:01:35]}  Nf7 {[%clk 0:02:01]} 25. h4 {[%clk 0:01:31]}  Nd6 {[%clk 0:01:59]} 26. g4 {[%clk 0:01:28]}  g6 {[%clk 0:01:48]} 27. Ng3 {[%clk 0:01:20]}  Ra8 {[%clk 0:01:44]} 28. Ke2 {[%clk 0:01:18]}  Rd8 {[%clk 0:01:35]} 29. g5 {[%clk 0:00:59]}  h6 {[%clk 0:01:29]} 30. fxg6 {[%clk 0:00:43]}  fxg5 {[%clk 0:01:28]} 31. h5 {[%clk 0:00:36]}  Ne8 {[%clk 0:01:28]} 32. Nf5+ {[%clk 0:00:32]}  Kf6 {[%clk 0:01:28]} 33. Nxh6 {[%clk 0:00:30]}  Ng7 {[%clk 0:01:29]} 34. Bg4 {[%clk 0:00:24]}  Rh8 {[%clk 0:01:28]} 35. Nf7 {[%clk 0:00:21]}  Rxh5 {[%clk 0:01:27]} 36. Bxh5 {[%clk 0:00:20]}  Nxh5 {[%clk 0:01:28]} 37. Nd7+ {[%clk 0:00:19]}  Kxg6 {[%clk 0:01:27]} 38. Nfxe5+ {[%clk 0:00:20]}  Kg7 {[%clk 0:01:27]} 39. Nxc6 {[%clk 0:00:20]}  Nf4+ {[%clk 0:01:26]} 40. Kf3 {[%clk 0:00:20]}  Nd3 {[%clk 0:01:24]} 41. Na7 {[%clk 0:00:21]}  Nc1 {[%clk 0:01:22]} 42. a3 {[%clk 0:00:21]}  Kf7 {[%clk 0:01:18]} 43. Nxb5 {[%clk 0:00:21]}  Ke6 {[%clk 0:01:19]} 44. Nc5+ {[%clk 0:00:21]}  Ke5 {[%clk 0:01:18]} 45. Nxa4 {[%clk 0:00:22]}  Nd3 {[%clk 0:01:15]} 46. Nc5 {[%clk 0:00:22]}  Nb2 {[%clk 0:01:14]} 47. Ke3 {[%clk 0:00:20]}  g4 {[%clk 0:01:12]} 48. Nd3+ {[%clk 0:00:20]}  Nxd3 {[%clk 0:01:10]} 49. Kxd3 {[%clk 0:00:20]}  Kf4 {[%clk 0:01:11]} 50. Nd4 {[%clk 0:00:21]}  Kg3 {[%clk 0:01:10]} 51. Ne2+ {[%clk 0:00:22]}  Kf2 {[%clk 0:01:10]} 52. e5 {[%clk 0:00:22]} 1-0


[Site "https://www.chess.com"]

[Event "Titled Tuesday Blitz April 4 Late 2023"]
[White "olga-belka"]
[Black "Pires, Marcos Vinicius Torsani"]
[BlackFideId "2118939"]
[WhiteElo "2296"]
[BlackElo "2273"]
[Result "0-1"]
[Round "04"]
[TimeControl "180+2"]
[Date "2023.04.04"]
[WhiteClock "0:00:08"]
[BlackClock "0:00:19"]

1. e4 {[%clk 0:02:59]}  c5 {[%clk 0:03:00]} 2. Nf3 {[%clk 0:02:58]}  g6 {[%clk 0:03:00]} 3. c3 {[%clk 0:02:56]}  Bg7 {[%clk 0:02:59]} 4. d4 {[%clk 0:02:56]}  cxd4 {[%clk 0:02:59]} 5. cxd4 {[%clk 0:02:56]}  d5 {[%clk 0:03:00]} 6. e5 {[%clk 0:02:56]}  Bg4 {[%clk 0:03:00]} 7. Be2 {[%clk 0:02:53]}  Nc6 {[%clk 0:02:57]} 8. Nc3 {[%clk 0:02:52]}  e6 {[%clk 0:02:56]} 9. Be3 {[%clk 0:02:49]}  Nge7 {[%clk 0:02:56]} 10. O-O {[%clk 0:02:46]}  O-O {[%clk 0:02:56]} 11. h3 {[%clk 0:02:43]}  Bxf3 {[%clk 0:02:56]} 12. Bxf3 {[%clk 0:02:43]}  Nf5 {[%clk 0:02:56]} 13. Ne2 {[%clk 0:02:32]}  Qb6 {[%clk 0:02:44]} 14. Qd2 {[%clk 0:02:28]}  Rac8 {[%clk 0:02:36]} 15. Rfd1 {[%clk 0:02:26]}  Na5 {[%clk 0:02:34]} 16. b3 {[%clk 0:02:24]}  Nc6 {[%clk 0:02:34]} 17. g4 {[%clk 0:02:09]}  Nxe3 {[%clk 0:02:29]} 18. Qxe3 {[%clk 0:02:03]}  Nb4 {[%clk 0:02:22]} 19. Nc3 {[%clk 0:02:00]}  Rc7 {[%clk 0:02:14]} 20. Rac1 {[%clk 0:01:56]}  Rfc8 {[%clk 0:02:13]} 21. a3 {[%clk 0:01:47]}  Na6 {[%clk 0:01:55]} 22. b4 {[%clk 0:01:41]}  Nb8 {[%clk 0:01:22]} 23. Be2 {[%clk 0:01:35]}  Qc6 {[%clk 0:01:16]} 24. Na2 {[%clk 0:01:25]}  Qa4 {[%clk 0:01:10]} 25. Rxc7 {[%clk 0:01:24]}  Rxc7 {[%clk 0:01:10]} 26. Rc1 {[%clk 0:01:23]}  Rc2 {[%clk 0:01:05]} 27. Bd1 {[%clk 0:01:18]}  Rxc1 {[%clk 0:01:01]} 28. Qxc1 {[%clk 0:01:17]}  Qc6 {[%clk 0:01:00]} 29. Qd2 {[%clk 0:01:12]}  Qc4 {[%clk 0:00:58]} 30. Qb2 {[%clk 0:00:59]}  Nc6 {[%clk 0:00:57]} 31. b5 {[%clk 0:00:47]}  Nxd4 {[%clk 0:00:55]} 32. b6 {[%clk 0:00:44]}  a6 {[%clk 0:00:42]} 33. Nb4 {[%clk 0:00:42]}  Bxe5 {[%clk 0:00:38]} 34. Qd2 {[%clk 0:00:43]}  Qb5 {[%clk 0:00:30]} 35. f4 {[%clk 0:00:34]}  Bg7 {[%clk 0:00:29]} 36. Kg2 {[%clk 0:00:29]}  Qxb6 {[%clk 0:00:29]} 37. Qc1 {[%clk 0:00:26]}  Nc6 {[%clk 0:00:27]} 38. Nd3 {[%clk 0:00:23]}  Qd4 {[%clk 0:00:25]} 39. Be2 {[%clk 0:00:19]}  Qe4+ {[%clk 0:00:24]} 40. Kf2 {[%clk 0:00:17]}  Bd4+ {[%clk 0:00:24]} 41. Ke1 {[%clk 0:00:15]}  Qh1+ {[%clk 0:00:24]} 42. Bf1 {[%clk 0:00:14]}  Qe4+ {[%clk 0:00:21]} 43. Be2 {[%clk 0:00:13]}  Be3 {[%clk 0:00:20]} 44. Qb2 {[%clk 0:00:08]}  Nd4 {[%clk 0:00:19]} 0-1


[Site "https://www.chess.com"]

[Event "Titled Tuesday Blitz April 4 Late 2023"]
[White "Shapiro, Viktor"]
[Black "Andreassen, Lars"]
[WhiteFideId "4175700"]
[BlackFideId "1504878"]
[WhiteElo "2152"]
[BlackElo "2119"]
[Result "0-1"]
[Round "04"]
[TimeControl "180+2"]
[Date "2023.04.04"]
[WhiteClock "0:01:29"]
[BlackClock "0:00:35"]

1. Nf3 {[%clk 0:03:00]}  d5 {[%clk 0:02:58]} 2. g3 {[%clk 0:03:01]}  g6 {[%clk 0:02:55]} 3. Bg2 {[%clk 0:03:01]}  Bg7 {[%clk 0:02:56]} 4. d3 {[%clk 0:03:01]}  Nf6 {[%clk 0:02:54]} 5. O-O {[%clk 0:03:02]}  O-O {[%clk 0:02:55]} 6. Nbd2 {[%clk 0:03:02]}  c5 {[%clk 0:02:48]} 7. c4 {[%clk 0:03:02]}  d4 {[%clk 0:02:42]} 8. a3 {[%clk 0:03:03]}  a5 {[%clk 0:02:40]} 9. Rb1 {[%clk 0:03:02]}  Nc6 {[%clk 0:02:37]} 10. Ng5 {[%clk 0:02:56]}  Bd7 {[%clk 0:02:32]} 11. Nde4 {[%clk 0:02:54]}  Nxe4 {[%clk 0:02:29]} 12. Nxe4 {[%clk 0:02:51]}  b6 {[%clk 0:02:26]} 13. Bd2 {[%clk 0:02:33]}  f5 {[%clk 0:02:06]} 14. Ng5 {[%clk 0:02:22]}  Qc7 {[%clk 0:01:55]} 15. b4 {[%clk 0:02:21]}  axb4 {[%clk 0:01:50]} 16. axb4 {[%clk 0:02:20]}  cxb4 {[%clk 0:01:46]} 17. Bd5+ {[%clk 0:02:17]}  Kh8 {[%clk 0:01:43]} 18. Bxb4 {[%clk 0:02:16]}  h6 {[%clk 0:01:39]} 19. Ne6 {[%clk 0:02:08]}  Bxe6 {[%clk 0:01:37]} 20. Bxe6 {[%clk 0:02:09]}  Nxb4 {[%clk 0:01:35]} 21. Rxb4 {[%clk 0:02:06]}  Qd6 {[%clk 0:01:35]} 22. Qb3 {[%clk 0:01:57]}  Qxe6 {[%clk 0:01:34]} 23. Rxb6 {[%clk 0:01:57]}  Qf7 {[%clk 0:01:32]} 24. Rb1 {[%clk 0:01:51]}  f4 {[%clk 0:01:30]} 25. g4 {[%clk 0:01:51]}  f3 {[%clk 0:01:27]} 26. Qc2 {[%clk 0:01:48]}  Be5 {[%clk 0:01:16]} 27. exf3 {[%clk 0:01:42]}  Qf4 {[%clk 0:01:08]} 28. Rxg6 {[%clk 0:01:35]}  Qxh2+ {[%clk 0:01:07]} 29. Kf1 {[%clk 0:01:36]}  Qh1+ {[%clk 0:01:01]} 30. Ke2 {[%clk 0:01:34]}  Qxf3+ {[%clk 0:01:02]} 31. Ke1 {[%clk 0:01:32]}  Qh1+ {[%clk 0:00:35]} 32. Ke2 {[%clk 0:01:32]}  Rxf2+ {[%clk 0:00:35]} 33. Kxf2 {[%clk 0:01:32]}  Rf8+ {[%clk 0:00:36]} 34. Ke2 {[%clk 0:01:32]}  Qg2+ {[%clk 0:00:35]} 35. Ke1 {[%clk 0:01:29]}  Rf1# {[%clk 0:00:35]} 0-1


[Site "https://www.chess.com"]

[Event "Titled Tuesday Blitz April 4 Late 2023"]
[White "Dudzinski, Pawel"]
[Black "Georg, Heinz"]
[WhiteFideId "1117890"]
[BlackFideId "4607295"]
[WhiteElo "2099"]
[BlackElo "2250"]
[Result "1-0"]
[Round "04"]
[TimeControl "180+2"]
[Date "2023.04.04"]
[WhiteClock "0:01:05"]
[BlackClock "0:01:19"]

1. e4 {[%clk 0:02:53]}  e5 {[%clk 0:02:59]} 2. Nf3 {[%clk 0:02:53]}  Nc6 {[%clk 0:02:59]} 3. d4 {[%clk 0:02:53]}  exd4 {[%clk 0:02:59]} 4. Nxd4 {[%clk 0:02:54]}  Nf6 {[%clk 0:02:59]} 5. Nxc6 {[%clk 0:02:53]}  bxc6 {[%clk 0:02:59]} 6. e5 {[%clk 0:02:53]}  Qe7 {[%clk 0:02:59]} 7. Qe2 {[%clk 0:02:54]}  Nd5 {[%clk 0:02:59]} 8. c4 {[%clk 0:02:54]}  Ba6 {[%clk 0:02:59]} 9. b3 {[%clk 0:02:55]}  g6 {[%clk 0:03:00]} 10. f4 {[%clk 0:02:55]}  Bg7 {[%clk 0:02:58]} 11. Qf2 {[%clk 0:02:55]}  Nb6 {[%clk 0:02:56]} 12. Bb2 {[%clk 0:02:20]}  O-O {[%clk 0:02:50]} 13. Be2 {[%clk 0:02:17]}  d6 {[%clk 0:02:44]} 14. exd6 {[%clk 0:02:00]}  cxd6 {[%clk 0:02:44]} 15. Bxg7 {[%clk 0:01:57]}  Kxg7 {[%clk 0:02:45]} 16. O-O {[%clk 0:01:51]}  Qf6 {[%clk 0:02:30]} 17. Nd2 {[%clk 0:01:49]}  Rfe8 {[%clk 0:02:24]} 18. Rfe1 {[%clk 0:01:48]}  d5 {[%clk 0:02:19]} 19. Rac1 {[%clk 0:01:40]}  Rad8 {[%clk 0:02:00]} 20. c5 {[%clk 0:01:29]}  Bxe2 {[%clk 0:01:59]} 21. cxb6 {[%clk 0:01:25]}  Ba6 {[%clk 0:01:41]} 22. bxa7 {[%clk 0:01:25]}  Rxe1+ {[%clk 0:01:34]} 23. Qxe1 {[%clk 0:01:24]}  Qxf4 {[%clk 0:01:27]} 24. Rxc6 {[%clk 0:01:17]}  Qd4+ {[%clk 0:01:26]} 25. Qf2 {[%clk 0:01:10]}  Qa1+ {[%clk 0:01:24]} 26. Nf1 {[%clk 0:01:10]}  Re8 {[%clk 0:01:19]} 27. Rxa6 {[%clk 0:01:05]} 1-0


[Site "https://www.chess.com"]

[Event "Titled Tuesday Blitz April 4 Late 2023"]
[White "Chabris, Christopher"]
[Black "Romero Pallares, Daniel"]
[WhiteFideId "2005263"]
[BlackFideId "32025637"]
[WhiteElo "2230"]
[BlackElo "2195"]
[Result "0-1"]
[Round "04"]
[TimeControl "180+2"]
[Date "2023.04.04"]
[WhiteClock "0:00:12"]
[BlackClock "0:00:34"]

1. e4 {[%clk 0:03:00]}  g6 {[%clk 0:02:56]} 2. d4 {[%clk 0:02:59]}  Bg7 {[%clk 0:02:56]} 3. Nc3 {[%clk 0:03:00]}  d6 {[%clk 0:02:57]} 4. Be3 {[%clk 0:03:00]}  a6 {[%clk 0:02:55]} 5. Nf3 {[%clk 0:02:55]}  b5 {[%clk 0:02:55]} 6. Bd3 {[%clk 0:02:55]}  Bb7 {[%clk 0:02:55]} 7. Qd2 {[%clk 0:02:52]}  Nd7 {[%clk 0:02:53]} 8. h4 {[%clk 0:02:49]}  h6 {[%clk 0:02:52]} 9. a4 {[%clk 0:02:44]}  b4 {[%clk 0:02:50]} 10. Ne2 {[%clk 0:02:44]}  c5 {[%clk 0:02:38]} 11. c3 {[%clk 0:02:34]}  bxc3 {[%clk 0:02:26]} 12. bxc3 {[%clk 0:02:33]}  cxd4 {[%clk 0:02:22]} 13. cxd4 {[%clk 0:02:30]}  Ngf6 {[%clk 0:02:20]} 14. Ng3 {[%clk 0:02:23]}  Ng4 {[%clk 0:02:15]} 15. Bf4 {[%clk 0:02:08]}  e5 {[%clk 0:02:07]} 16. dxe5 {[%clk 0:01:56]}  dxe5 {[%clk 0:01:44]} 17. Be3 {[%clk 0:01:55]}  Nxe3 {[%clk 0:01:45]} 18. Qxe3 {[%clk 0:01:52]}  Qa5+ {[%clk 0:01:44]} 19. Nd2 {[%clk 0:01:42]}  Nc5 {[%clk 0:01:40]} 20. Bc2 {[%clk 0:01:32]}  Rd8 {[%clk 0:01:27]} 21. Ke2 {[%clk 0:01:20]}  Ne6 {[%clk 0:01:13]} 22. Nb3 {[%clk 0:00:29]}  Qc7 {[%clk 0:00:58]} 23. Rac1 {[%clk 0:00:24]}  Nf4+ {[%clk 0:00:50]} 24. Kf3 {[%clk 0:00:20]}  O-O {[%clk 0:00:40]} 25. h5 {[%clk 0:00:19]}  Qe7 {[%clk 0:00:39]} 26. Nf1 {[%clk 0:00:14]}  f5 {[%clk 0:00:35]} 27. g3 {[%clk 0:00:12]}  fxe4+ {[%clk 0:00:35]} 28. Bxe4 {[%clk 0:00:12]}  Nd5+ {[%clk 0:00:34]} 0-1


[Site "https://www.chess.com"]

[Event "Titled Tuesday Blitz April 4 Late 2023"]
[White "Kornyukov, Alexey"]
[Black "liwadas82"]
[WhiteFideId "4150457"]
[WhiteElo "2352"]
[BlackElo "2463"]
[Result "0-1"]
[Round "04"]
[TimeControl "180+2"]
[Date "2023.04.04"]
[WhiteClock "0:00:03"]
[BlackClock "0:00:21"]

1. d4 {[%clk 0:03:00]}  Nf6 {[%clk 0:02:58]} 2. c4 {[%clk 0:03:01]}  e6 {[%clk 0:02:59]} 3. Nc3 {[%clk 0:03:00]}  Bb4 {[%clk 0:02:59]} 4. f3 {[%clk 0:02:59]}  O-O {[%clk 0:02:50]} 5. e4 {[%clk 0:02:58]}  Ne8 {[%clk 0:02:50]} 6. Ne2 {[%clk 0:02:32]}  f5 {[%clk 0:02:47]} 7. a3 {[%clk 0:02:29]}  Bxc3+ {[%clk 0:02:31]} 8. Nxc3 {[%clk 0:02:29]}  fxe4 {[%clk 0:02:31]} 9. fxe4 {[%clk 0:02:18]}  Nc6 {[%clk 0:02:28]} 10. Be3 {[%clk 0:02:12]}  Nd6 {[%clk 0:02:12]} 11. Be2 {[%clk 0:01:58]}  b6 {[%clk 0:02:06]} 12. Qd2 {[%clk 0:01:20]}  Ba6 {[%clk 0:01:55]} 13. b3 {[%clk 0:01:19]}  Qh4+ {[%clk 0:01:47]} 14. g3 {[%clk 0:01:19]}  Qh3 {[%clk 0:01:38]} 15. O-O-O {[%clk 0:01:16]}  Na5 {[%clk 0:01:35]} 16. Kc2 {[%clk 0:01:06]}  Rab8 {[%clk 0:00:50]} 17. Bf4 {[%clk 0:00:53]}  Qg2 {[%clk 0:00:42]} 18. Rdg1 {[%clk 0:00:36]}  Qh3 {[%clk 0:00:42]} 19. Rf1 {[%clk 0:00:20]}  Qg2 {[%clk 0:00:41]} 20. Rfg1 {[%clk 0:00:17]}  Qh3 {[%clk 0:00:41]} 21. Bf1 {[%clk 0:00:13]}  Qh5 {[%clk 0:00:38]} 22. Bd3 {[%clk 0:00:12]}  b5 {[%clk 0:00:29]} 23. c5 {[%clk 0:00:11]}  Ndc4 {[%clk 0:00:26]} 24. bxc4 {[%clk 0:00:08]}  bxc4 {[%clk 0:00:27]} 25. Be2 {[%clk 0:00:07]}  Qg6 {[%clk 0:00:27]} 26. Rb1 {[%clk 0:00:05]}  Rb3 {[%clk 0:00:27]} 27. Rxb3 {[%clk 0:00:02]}  Nxb3 {[%clk 0:00:26]} 28. Qe3 {[%clk 0:00:03]}  Rb8 {[%clk 0:00:21]} 0-1


[Site "https://www.chess.com"]

[Event "Titled Tuesday Blitz April 4 Late 2023"]
[White "Olsson, William"]
[Black "Baruch, Liam"]
[WhiteFideId "1741721"]
[BlackFideId "14322064"]
[WhiteElo "2197"]
[BlackElo "2161"]
[Result "1-0"]
[Round "04"]
[TimeControl "180+2"]
[Date "2023.04.04"]
[WhiteClock "0:00:31"]
[BlackClock "0:00:19"]

1. c4 {[%clk 0:02:55]}  e6 {[%clk 0:02:59]} 2. g3 {[%clk 0:02:55]}  d5 {[%clk 0:03:00]} 3. Nf3 {[%clk 0:02:56]}  Nf6 {[%clk 0:03:00]} 4. Bg2 {[%clk 0:02:56]}  Be7 {[%clk 0:03:00]} 5. O-O {[%clk 0:02:57]}  O-O {[%clk 0:03:01]} 6. b3 {[%clk 0:02:55]}  c5 {[%clk 0:03:01]} 7. cxd5 {[%clk 0:02:54]}  Nxd5 {[%clk 0:03:00]} 8. Bb2 {[%clk 0:02:54]}  Nc6 {[%clk 0:03:01]} 9. Nc3 {[%clk 0:02:53]}  Bf6 {[%clk 0:02:58]} 10. Rc1 {[%clk 0:02:51]}  b6 {[%clk 0:02:57]} 11. Qc2 {[%clk 0:02:46]}  Bb7 {[%clk 0:02:55]} 12. Rfd1 {[%clk 0:02:45]}  Ndb4 {[%clk 0:02:42]} 13. Qb1 {[%clk 0:02:43]}  Ba6 {[%clk 0:02:31]} 14. d3 {[%clk 0:02:33]}  Rc8 {[%clk 0:02:29]} 15. a3 {[%clk 0:02:25]}  Nd5 {[%clk 0:02:27]} 16. Nxd5 {[%clk 0:02:09]}  exd5 {[%clk 0:02:28]} 17. d4 {[%clk 0:02:07]}  Bxe2 {[%clk 0:02:23]} 18. Re1 {[%clk 0:02:07]}  Bxf3 {[%clk 0:02:22]} 19. Bxf3 {[%clk 0:02:07]}  Nxd4 {[%clk 0:02:22]} 20. Bg2 {[%clk 0:02:07]}  Bg5 {[%clk 0:02:11]} 21. Rcd1 {[%clk 0:02:05]}  Bf6 {[%clk 0:01:52]} 22. b4 {[%clk 0:02:02]}  Qd7 {[%clk 0:01:45]} 23. h4 {[%clk 0:01:46]}  Rfd8 {[%clk 0:01:38]} 24. Qa2 {[%clk 0:01:40]}  Qf5 {[%clk 0:01:31]} 25. Re3 {[%clk 0:01:23]}  Nc2 {[%clk 0:01:02]} 26. Rf3 {[%clk 0:01:10]}  Qe6 {[%clk 0:00:47]} 27. Bxf6 {[%clk 0:01:08]}  Nxb4 {[%clk 0:00:32]} 28. axb4 {[%clk 0:01:05]}  gxf6 {[%clk 0:00:33]} 29. bxc5 {[%clk 0:01:02]}  Rxc5 {[%clk 0:00:33]} 30. Qxa7 {[%clk 0:00:46]}  Rdc8 {[%clk 0:00:30]} 31. Rfd3 {[%clk 0:00:39]}  Rc1 {[%clk 0:00:21]} 32. Bxd5 {[%clk 0:00:37]}  Rxd1+ {[%clk 0:00:20]} 33. Rxd1 {[%clk 0:00:37]}  Qe8 {[%clk 0:00:18]} 34. Qxb6 {[%clk 0:00:33]}  Rd8 {[%clk 0:00:19]} 35. Qxd8 {[%clk 0:00:31]} 1-0


[Site "https://www.chess.com"]

[Event "Titled Tuesday Blitz April 4 Late 2023"]
[White "Santos Flores, Alberto"]
[Black "Michalski, Olaf"]
[WhiteFideId "3601234"]
[BlackFideId "1106740"]
[WhiteElo "2235"]
[BlackElo "2173"]
[Result "1-0"]
[Round "04"]
[TimeControl "180+2"]
[Date "2023.04.04"]
[WhiteClock "0:00:37"]
[BlackClock "0:00:01"]

1. d4 {[%clk 0:03:00]}  d6 {[%clk 0:02:57]} 2. e4 {[%clk 0:02:59]}  Nc6 {[%clk 0:02:57]} 3. Be3 {[%clk 0:02:53]}  Nf6 {[%clk 0:02:53]} 4. Nc3 {[%clk 0:02:53]}  e5 {[%clk 0:02:48]} 5. d5 {[%clk 0:02:50]}  Nb8 {[%clk 0:02:45]} 6. Bd3 {[%clk 0:02:46]}  Be7 {[%clk 0:02:22]} 7. Nce2 {[%clk 0:02:45]}  c6 {[%clk 0:02:07]} 8. c4 {[%clk 0:02:44]}  Ng4 {[%clk 0:02:07]} 9. Bc1 {[%clk 0:02:39]}  Qb6 {[%clk 0:01:43]} 10. Nh3 {[%clk 0:02:39]}  h6 {[%clk 0:01:21]} 11. Ng3 {[%clk 0:02:32]}  Bh4 {[%clk 0:00:50]} 12. Qf3 {[%clk 0:02:13]}  Qb4+ {[%clk 0:00:27]} 13. Kf1 {[%clk 0:01:52]}  Bxg3 {[%clk 0:00:23]} 14. hxg3 {[%clk 0:01:51]}  Nf6 {[%clk 0:00:17]} 15. Qe2 {[%clk 0:01:48]}  Nbd7 {[%clk 0:00:09]} 16. Be3 {[%clk 0:01:45]}  Nc5 {[%clk 0:00:07]} 17. a3 {[%clk 0:01:42]}  Qb3 {[%clk 0:00:07]} 18. Bxc5 {[%clk 0:01:40]}  dxc5 {[%clk 0:00:07]} 19. Qc2 {[%clk 0:01:30]}  Qxc2 {[%clk 0:00:07]} 20. Bxc2 {[%clk 0:01:31]}  O-O {[%clk 0:00:07]} 21. Ng1 {[%clk 0:01:29]}  Bd7 {[%clk 0:00:07]} 22. Nf3 {[%clk 0:01:29]}  Rfe8 {[%clk 0:00:06]} 23. Ke2 {[%clk 0:01:28]}  cxd5 {[%clk 0:00:06]} 24. cxd5 {[%clk 0:01:25]}  Bb5+ {[%clk 0:00:07]} 25. Bd3 {[%clk 0:00:57]}  c4 {[%clk 0:00:04]} 26. Bc2 {[%clk 0:00:57]}  c3+ {[%clk 0:00:04]} 27. Bd3 {[%clk 0:00:58]}  Bxd3+ {[%clk 0:00:04]} 28. Kxd3 {[%clk 0:00:58]}  c2 {[%clk 0:00:04]} 29. Nd2 {[%clk 0:00:53]}  Rac8 {[%clk 0:00:02]} 30. Rac1 {[%clk 0:00:46]}  Ng4 {[%clk 0:00:02]} 31. Rhf1 {[%clk 0:00:39]}  f5 {[%clk 0:00:02]} 32. f3 {[%clk 0:00:39]}  Nf6 {[%clk 0:00:02]} 33. Rxc2 {[%clk 0:00:38]}  Rxc2 {[%clk 0:00:02]} 34. Kxc2 {[%clk 0:00:38]}  fxe4 {[%clk 0:00:02]} 35. fxe4 {[%clk 0:00:37]}  Rc8+ {[%clk 0:00:01]} 36. Kd3 {[%clk 0:00:37]} 1-0


[Site "https://www.chess.com"]

[Event "Titled Tuesday Blitz April 4 Late 2023"]
[White "Saya, Ethan"]
[Black "Krasteva, Beloslava"]
[WhiteFideId "26095181"]
[BlackFideId "2922029"]
[WhiteElo "2189"]
[BlackElo "2187"]
[Result "0-1"]
[Round "04"]
[TimeControl "180+2"]
[Date "2023.04.04"]
[WhiteClock "0:00:34"]
[BlackClock "0:00:19"]

1. g3 {[%clk 0:02:46]}  c5 {[%clk 0:02:54]} 2. Bg2 {[%clk 0:02:46]}  Nc6 {[%clk 0:02:54]} 3. Nf3 {[%clk 0:02:47]}  d5 {[%clk 0:02:51]} 4. d4 {[%clk 0:02:44]}  e6 {[%clk 0:02:48]} 5. c4 {[%clk 0:02:42]}  Nf6 {[%clk 0:02:45]} 6. O-O {[%clk 0:02:39]}  Be7 {[%clk 0:02:35]} 7. dxc5 {[%clk 0:02:37]}  Bxc5 {[%clk 0:02:35]} 8. Bg5 {[%clk 0:02:26]}  O-O {[%clk 0:02:33]} 9. cxd5 {[%clk 0:02:25]}  exd5 {[%clk 0:02:33]} 10. Nc3 {[%clk 0:02:22]}  Be6 {[%clk 0:02:26]} 11. Rc1 {[%clk 0:02:17]}  Be7 {[%clk 0:02:22]} 12. Nb5 {[%clk 0:02:11]}  h6 {[%clk 0:02:17]} 13. Be3 {[%clk 0:02:08]}  Qa5 {[%clk 0:02:08]} 14. a4 {[%clk 0:02:02]}  Rfd8 {[%clk 0:01:40]} 15. Bc5 {[%clk 0:02:01]}  Bxc5 {[%clk 0:01:30]} 16. Rxc5 {[%clk 0:02:02]}  Qb4 {[%clk 0:01:28]} 17. Rc1 {[%clk 0:01:48]}  Qxb2 {[%clk 0:01:16]} 18. Nfd4 {[%clk 0:01:48]}  Nxd4 {[%clk 0:01:11]} 19. Qxd4 {[%clk 0:01:49]}  Qxd4 {[%clk 0:01:10]} 20. Nxd4 {[%clk 0:01:50]}  Rac8 {[%clk 0:01:08]} 21. Rxc8 {[%clk 0:01:47]}  Rxc8 {[%clk 0:01:08]} 22. Rb1 {[%clk 0:01:47]}  b6 {[%clk 0:01:06]} 23. a5 {[%clk 0:01:45]}  bxa5 {[%clk 0:01:01]} 24. f3 {[%clk 0:01:42]}  a4 {[%clk 0:00:56]} 25. Rb7 {[%clk 0:01:28]}  a5 {[%clk 0:00:47]} 26. Ra7 {[%clk 0:01:27]}  Rc5 {[%clk 0:00:37]} 27. Rb7 {[%clk 0:00:57]}  a3 {[%clk 0:00:36]} 28. Rb1 {[%clk 0:00:58]}  Rc4 {[%clk 0:00:32]} 29. Nb5 {[%clk 0:00:40]}  a2 {[%clk 0:00:19]} 30. Ra1 {[%clk 0:00:39]}  Rb4 {[%clk 0:00:19]} 31. Nc3 {[%clk 0:00:39]}  d4 {[%clk 0:00:19]} 32. Nxa2 {[%clk 0:00:34]}  Ra4 {[%clk 0:00:19]} 0-1


[Site "https://www.chess.com"]